[Event "Early-Titled-Tuesday-Blitz-March-19-2024"]
[Site "Chess.com"]
[Date "2024.03.19"]
[Round "8"]
[White "kassablanca"]
[Black "xasid81"]
[Result "1-0"]
[WhiteElo "2769"]
[BlackElo "2589"]
[TimeControl "180+1"]
[EndTime "9:30:05 PDT"]
[Termination "kassablanca won by resignation"]

1. b3 {[%clk 0:03:00.9]} 1... d5 {[%clk 0:02:59.4]} 2. Bb2 {[%clk 0:03:01.2]}
2... c6 {[%clk 0:03:00.3]} 3. e3 {[%clk 0:03:01.2]} 3... Bf5 {[%clk 0:03:00.9]}
4. Nf3 {[%clk 0:03:01.4]} 4... e6 {[%clk 0:03:01.4]} 5. Be2 {[%clk 0:03:00.9]}
5... h6 {[%clk 0:03:01.7]} 6. c4 {[%clk 0:02:59.5]} 6... Nf6 {[%clk 0:03:01.9]}
7. Nc3 {[%clk 0:02:58.9]} 7... Nbd7 {[%clk 0:03:02]} 8. O-O {[%clk 0:02:54.4]}
8... Bd6 {[%clk 0:03:02]} 9. d4 {[%clk 0:02:53.8]} 9... O-O {[%clk 0:03:01.6]}
10. Bd3 {[%clk 0:02:53.1]} 10... Bxd3 {[%clk 0:02:54.5]} 11. Qxd3 {[%clk
0:02:54]} 11... Qe7 {[%clk 0:02:52.8]} 12. a4 {[%clk 0:02:49.5]} 12... e5 {[%clk
0:02:51.7]} 13. Qf5 {[%clk 0:02:33.8]} 13... e4 {[%clk 0:02:47.6]} 14. Nd2
{[%clk 0:02:33.3]} 14... Qe6 {[%clk 0:02:38.5]} 15. Qxe6 {[%clk 0:02:23.5]}
15... fxe6 {[%clk 0:02:39.4]} 16. Ba3 {[%clk 0:02:19.6]} 16... Bxa3 {[%clk
0:02:35.3]} 17. Rxa3 {[%clk 0:02:20.5]} 17... e5 {[%clk 0:02:33.5]} 18. dxe5
{[%clk 0:02:10.5]} 18... Nxe5 {[%clk 0:02:33]} 19. cxd5 {[%clk 0:02:08.9]} 19...
cxd5 {[%clk 0:02:33.7]} 20. Nb5 {[%clk 0:01:44.5]} 20... a6 {[%clk 0:02:31.7]}
21. Nd4 {[%clk 0:01:44.6]} 21... Rac8 {[%clk 0:02:30.8]} 22. a5 {[%clk
0:01:37.5]} 22... Rc3 {[%clk 0:02:22.6]} 23. Nb1 {[%clk 0:01:31.6]} 23... Rcc8
{[%clk 0:02:17.7]} 24. b4 {[%clk 0:01:27.5]} 24... Nfg4 {[%clk 0:02:08.2]} 25.
Rc3 {[%clk 0:01:10.9]} 25... Nd3 {[%clk 0:01:41.5]} 26. h3 {[%clk 0:00:41.3]}
26... Nge5 {[%clk 0:01:15.3]} 27. b5 {[%clk 0:00:37.6]} 27... Nc4 {[%clk
0:01:11.4]} 28. bxa6 {[%clk 0:00:34.7]} 28... bxa6 {[%clk 0:01:12.3]} 29. Nb3
{[%clk 0:00:20.1]} 29... Rf6 {[%clk 0:01:07.7]} 30. N1d2 {[%clk 0:00:19.9]}
30... Rb8 {[%clk 0:00:50.2]} 31. Nxc4 {[%clk 0:00:17.3]} 31... dxc4 {[%clk
0:00:51.1]} 32. Nd2 {[%clk 0:00:17.1]} 32... Rc6 {[%clk 0:00:43.1]} 33. Rxc4
{[%clk 0:00:15.3]} 33... Rxc4 {[%clk 0:00:43.1]} 34. Nxc4 {[%clk 0:00:16.2]}
34... Rb4 {[%clk 0:00:43.2]} 35. Nd6 {[%clk 0:00:15.8]} 35... Ra4 {[%clk
0:00:37.5]} 36. Rb1 {[%clk 0:00:15.6]} 36... Rxa5 {[%clk 0:00:28.9]} 37. Rb8+
{[%clk 0:00:13]} 37... Kh7 {[%clk 0:00:27.9]} 38. Nxe4 {[%clk 0:00:13.9]} 38...
Ra4 {[%clk 0:00:23.4]} 39. f3 {[%clk 0:00:14]} 39... Ra2 {[%clk 0:00:20.7]} 40.
Rd8 {[%clk 0:00:11.2]} 40... Ne1 {[%clk 0:00:17.3]} 41. Rd2 {[%clk 0:00:11.8]}
41... Rxd2 {[%clk 0:00:16.2]} 42. Nxd2 {[%clk 0:00:12.7]} 42... Nc2 {[%clk
0:00:17.1]} 43. Nc4 {[%clk 0:00:12.4]} 43... a5 {[%clk 0:00:16.4]} 44. Nxa5
{[%clk 0:00:11.4]} 44... Nxe3 {[%clk 0:00:16.4]} 45. Kf2 {[%clk 0:00:12]} 45...
Nd1+ {[%clk 0:00:16.1]} 46. Ke2 {[%clk 0:00:12]} 46... Nc3+ {[%clk 0:00:17]} 47.
Kd3 {[%clk 0:00:12.1]} 47... Nd5 {[%clk 0:00:17.4]} 48. Ke2 {[%clk 0:00:12.3]}
48... Nf4+ {[%clk 0:00:17.6]} 49. Kf2 {[%clk 0:00:13]} 49... Nd5 {[%clk
0:00:18.3]} 50. g3 {[%clk 0:00:13]} 50... Kg6 {[%clk 0:00:18.2]} 51. Nc4 {[%clk
0:00:13.3]} 51... Kf6 {[%clk 0:00:18.6]} 52. h4 {[%clk 0:00:13.4]} 52... g5
{[%clk 0:00:18.5]} 53. h5 {[%clk 0:00:13.2]} 53... Kf5 {[%clk 0:00:15.9]} 54.
Ne3+ {[%clk 0:00:12.3]} 54... Nxe3 {[%clk 0:00:14]} 55. Kxe3 {[%clk 0:00:13.2]}
55... Ke5 {[%clk 0:00:11.7]} 56. Kd3 {[%clk 0:00:13.1]} 56... Kd5 {[%clk
0:00:08.4]} 57. f4 {[%clk 0:00:12.1]} 57... g4 {[%clk 0:00:04.7]} 58. Ke3 {[%clk
0:00:12]} 58... Ke6 {[%clk 0:00:05.1]} 59. Ke4 {[%clk 0:00:12.7]} 59... Kf6
{[%clk 0:00:05.6]} 60. Kd5 {[%clk 0:00:12.8]} 60... Kf5 {[%clk 0:00:05.2]} 61.
Kd4 {[%clk 0:00:13]} 61... Kf6 {[%clk 0:00:05.2]} 62. Ke4 {[%clk 0:00:12.8]}
62... Ke6 {[%clk 0:00:03.1]} 63. f5+ {[%clk 0:00:13.4]} 63... Kf6 {[%clk
0:00:03.1]} 64. Kf4 {[%clk 0:00:14.3]} 64... Ke7 {[%clk 0:00:02.8]} 65. Kxg4
{[%clk 0:00:14.6]} 1-0

[Event "Early-Titled-Tuesday-Blitz-March-19-2024"]
[Site "Chess.com"]
[Date "2024.03.19"]
[Round "8"]
[White "stepanosinovsky"]
[Black "mary-sanna"]
[Result "1-0"]
[WhiteElo "2339"]
[BlackElo "2197"]
[TimeControl "180+1"]
[EndTime "9:30:05 PDT"]
[Termination "stepanosinovsky won by resignation"]

1. e4 {[%clk 0:02:56.2]} 1... c5 {[%clk 0:02:59.1]} 2. Nf3 {[%clk 0:02:56.3]}
2... Nc6 {[%clk 0:02:58.3]} 3. Bb5 {[%clk 0:02:54.9]} 3... g6 {[%clk 0:02:57.4]}
4. O-O {[%clk 0:02:54]} 4... Bg7 {[%clk 0:02:57.3]} 5. Re1 {[%clk 0:02:54.2]}
5... Nf6 {[%clk 0:02:47.3]} 6. e5 {[%clk 0:02:52.7]} 6... Nd5 {[%clk 0:02:45.9]}
7. Bxc6 {[%clk 0:02:51.5]} 7... dxc6 {[%clk 0:02:43.5]} 8. h3 {[%clk 0:02:51.4]}
8... O-O {[%clk 0:02:42.8]} 9. d3 {[%clk 0:02:51.5]} 9... Qc7 {[%clk 0:02:33.6]}
10. Bd2 {[%clk 0:02:48.7]} 10... b5 {[%clk 0:02:31.8]} 11. Qc1 {[%clk
0:02:47.8]} 11... Rd8 {[%clk 0:02:30.4]} 12. Bh6 {[%clk 0:02:48.3]} 12... Bh8
{[%clk 0:02:29.6]} 13. Qg5 {[%clk 0:02:44.3]} 13... Be6 {[%clk 0:02:18.1]} 14.
Nbd2 {[%clk 0:02:35.7]} 14... Nb4 {[%clk 0:02:17.8]} 15. Qh4 {[%clk 0:01:13.3]}
15... Nxc2 {[%clk 0:01:57.7]} 16. Bg5 {[%clk 0:01:10.2]} 16... Nxe1 {[%clk
0:01:50.9]} 17. Rxe1 {[%clk 0:01:08.7]} 17... Rxd3 {[%clk 0:01:41.2]} 18. Bxe7
{[%clk 0:01:06.1]} 18... Re8 {[%clk 0:01:28.8]} 19. Bf6 {[%clk 0:01:03]} 19...
Bd5 {[%clk 0:01:06.8]} 20. Ne4 {[%clk 0:00:15.8]} 20... Bxe4 {[%clk 0:00:52.5]}
21. Rxe4 {[%clk 0:00:16.7]} 21... Rd1+ {[%clk 0:00:24]} 22. Kh2 {[%clk
0:00:16.5]} 22... Bxf6 {[%clk 0:00:21.5]} 23. Qxf6 {[%clk 0:00:17.2]} 23... Qe7
{[%clk 0:00:18.5]} 24. Qf4 {[%clk 0:00:17.1]} 24... Kg7 {[%clk 0:00:14.9]} 25.
Re3 {[%clk 0:00:16.6]} 25... h6 {[%clk 0:00:13.7]} 26. h4 {[%clk 0:00:14.7]}
26... Rd5 {[%clk 0:00:09.2]} 27. g3 {[%clk 0:00:13.9]} 27... Qe6 {[%clk
0:00:09]} 28. Kg2 {[%clk 0:00:13.8]} 28... b4 {[%clk 0:00:08.1]} 29. Qc4 {[%clk
0:00:12.6]} 29... a5 {[%clk 0:00:07.9]} 30. b3 {[%clk 0:00:12.4]} 30... Ra8
{[%clk 0:00:07.2]} 31. Qe4 {[%clk 0:00:11.4]} 31... a4 {[%clk 0:00:06.9]} 32.
Qc4 {[%clk 0:00:10.7]} 32... axb3 {[%clk 0:00:07]} 33. axb3 {[%clk 0:00:11.5]}
33... Ra2 {[%clk 0:00:07.1]} 34. Qe4 {[%clk 0:00:10.4]} 34... Rb2 {[%clk
0:00:06.7]} 35. Qc4 {[%clk 0:00:10.2]} 35... Rd1 {[%clk 0:00:05.7]} 36. Qxc5
{[%clk 0:00:09.7]} 36... Rxb3 {[%clk 0:00:04.9]} 37. Nd4 {[%clk 0:00:07.7]}
37... Rxe3 {[%clk 0:00:01.9]} 38. Nxe6+ {[%clk 0:00:07.3]} 38... fxe6 {[%clk
0:00:02.3]} 39. Qe7+ {[%clk 0:00:07.3]} 39... Kg8 {[%clk 0:00:02.3]} 40. Qxe6+
{[%clk 0:00:07.3]} 40... Kg7 {[%clk 0:00:02.7]} 41. Qe7+ {[%clk 0:00:07.5]}
41... Kg8 {[%clk 0:00:03]} 42. Qe8+ {[%clk 0:00:07.9]} 42... Kg7 {[%clk
0:00:03.4]} 43. Qe7+ {[%clk 0:00:07.9]} 43... Kg8 {[%clk 0:00:03.6]} 44. fxe3
{[%clk 0:00:08.8]} 44... Rd2+ {[%clk 0:00:03.6]} 45. Kf3 {[%clk 0:00:08.7]}
45... b3 {[%clk 0:00:04.1]} 46. Qe6+ {[%clk 0:00:09.1]} 46... Kg7 {[%clk
0:00:04.3]} 47. Qxb3 {[%clk 0:00:10]} 47... Rd7 {[%clk 0:00:04.8]} 48. Qe6
{[%clk 0:00:10.1]} 48... Rf7+ {[%clk 0:00:05.1]} 49. Ke4 {[%clk 0:00:10.8]}
49... c5 {[%clk 0:00:04.9]} 50. Qc6 {[%clk 0:00:11]} 50... g5 {[%clk 0:00:04.3]}
51. Qxc5 {[%clk 0:00:10.5]} 51... gxh4 {[%clk 0:00:05.2]} 52. gxh4 {[%clk
0:00:11.1]} 52... Kg6 {[%clk 0:00:05.5]} 53. Qd6+ {[%clk 0:00:10.6]} 53... Kh5
{[%clk 0:00:05.8]} 54. Qe6 {[%clk 0:00:09.6]} 54... Rf4+ {[%clk 0:00:05.2]} 55.
exf4 {[%clk 0:00:08.3]} 55... Kxh4 {[%clk 0:00:04.5]} 56. Qxh6+ {[%clk
0:00:08.8]} 56... Kg3 {[%clk 0:00:04.8]} 57. e6 {[%clk 0:00:09.5]} 57... Kf2
{[%clk 0:00:05.7]} 58. e7 {[%clk 0:00:09.2]} 1-0

[Event "Early-Titled-Tuesday-Blitz-March-19-2024"]
[Site "Chess.com"]
[Date "2024.03.19"]
[Round "8"]
[White "ahkashefi2800"]
[Black "Makswolf200817"]
[Result "1-0"]
[WhiteElo "2595"]
[BlackElo "2744"]
[TimeControl "180+1"]
[EndTime "9:30:06 PDT"]
[Termination "ahkashefi2800 won on time"]

1. Nf3 {[%clk 0:02:59.1]} 1... d5 {[%clk 0:02:57]} 2. c4 {[%clk 0:02:58.2]} 2...
e6 {[%clk 0:02:55.3]} 3. cxd5 {[%clk 0:02:58.4]} 3... exd5 {[%clk 0:02:54.7]} 4.
d4 {[%clk 0:02:58.5]} 4... c6 {[%clk 0:02:53.8]} 5. Nc3 {[%clk 0:02:57.6]} 5...
Bf5 {[%clk 0:02:52.7]} 6. Bf4 {[%clk 0:02:51.8]} 6... Nf6 {[%clk 0:02:51.4]} 7.
e3 {[%clk 0:02:52]} 7... Be7 {[%clk 0:02:51.1]} 8. Bd3 {[%clk 0:02:51.8]} 8...
Bxd3 {[%clk 0:02:51.8]} 9. Qxd3 {[%clk 0:02:51.9]} 9... O-O {[%clk 0:02:52.5]}
10. O-O {[%clk 0:02:51.9]} 10... Nbd7 {[%clk 0:02:52.9]} 11. Rab1 {[%clk
0:02:50.2]} 11... a5 {[%clk 0:02:45.2]} 12. Rfc1 {[%clk 0:02:44.6]} 12... Re8
{[%clk 0:02:43.3]} 13. Ne5 {[%clk 0:02:41.4]} 13... Nb6 {[%clk 0:02:39.6]} 14.
h3 {[%clk 0:02:33.9]} 14... Nfd7 {[%clk 0:02:28.2]} 15. Qf5 {[%clk 0:02:30.3]}
15... Nxe5 {[%clk 0:02:26.7]} 16. Bxe5 {[%clk 0:02:30.3]} 16... Bd6 {[%clk
0:02:25.7]} 17. Bxd6 {[%clk 0:02:26.1]} 17... Qxd6 {[%clk 0:02:26.6]} 18. b3
{[%clk 0:02:26.2]} 18... Re6 {[%clk 0:02:22.3]} 19. Na4 {[%clk 0:02:23]} 19...
Rf6 {[%clk 0:02:16.9]} 20. Qc2 {[%clk 0:02:14.3]} 20... Nc8 {[%clk 0:02:16.3]}
21. Nc5 {[%clk 0:02:07.7]} 21... Qe7 {[%clk 0:02:16.2]} 22. Re1 {[%clk
0:02:04.9]} 22... Nd6 {[%clk 0:02:15.4]} 23. a3 {[%clk 0:02:02.9]} 23... Re8
{[%clk 0:01:55.4]} 24. f3 {[%clk 0:01:55.9]} 24... Rg6 {[%clk 0:01:20]} 25. e4
{[%clk 0:01:53.5]} 25... dxe4 {[%clk 0:01:18]} 26. Nxe4 {[%clk 0:01:52.4]} 26...
Rd8 {[%clk 0:01:10.7]} 27. Rbd1 {[%clk 0:01:47.8]} 27... Nb5 {[%clk 0:01:01.6]}
28. Nc5 {[%clk 0:01:34.8]} 28... Qc7 {[%clk 0:01:01.6]} 29. a4 {[%clk
0:01:28.8]} 29... Nd6 {[%clk 0:01:01.1]} 30. Re5 {[%clk 0:01:21.6]} 30... h6
{[%clk 0:00:57.5]} 31. Rde1 {[%clk 0:01:21.8]} 31... Kh7 {[%clk 0:00:54.4]} 32.
Re7 {[%clk 0:01:20.7]} 32... Qb6 {[%clk 0:00:53.9]} 33. h4 {[%clk 0:01:17.2]}
33... Kg8 {[%clk 0:00:51.6]} 34. Kh1 {[%clk 0:00:59.9]} 34... Qb4 {[%clk
0:00:49.3]} 35. Qd3 {[%clk 0:00:44]} 35... h5 {[%clk 0:00:36.5]} 36. R1e5 {[%clk
0:00:42.6]} 36... b6 {[%clk 0:00:25.2]} 37. Nd7 {[%clk 0:00:22]} 37... Qa3
{[%clk 0:00:10.7]} 38. Kh2 {[%clk 0:00:21.5]} 38... Qc1 {[%clk 0:00:09.5]} 39.
g3 {[%clk 0:00:10.7]} 39... Qb2+ {[%clk 0:00:08.9]} 40. Kh3 {[%clk 0:00:08.9]}
40... Qa1 {[%clk 0:00:08]} 41. Kg2 {[%clk 0:00:06.5]} 41... Qb2+ {[%clk
0:00:06.9]} 42. Re2 {[%clk 0:00:06]} 42... Qa3 {[%clk 0:00:06.2]} 43. Ne5 {[%clk
0:00:05.9]} 43... Rf6 {[%clk 0:00:04.1]} 44. Nxc6 {[%clk 0:00:06.1]} 44... Rc8
{[%clk 0:00:04.7]} 45. Ne5 {[%clk 0:00:05.6]} 45... Nf5 {[%clk 0:00:03.8]} 46.
Rd7 {[%clk 0:00:05.7]} 46... Rc1 {[%clk 0:00:02.1]} 47. Rd8+ {[%clk 0:00:03.1]}
47... Kh7 {[%clk 0:00:02.7]} 48. g4 {[%clk 0:00:03.1]} 48... Qa1 {[%clk
0:00:01.7]} 49. gxf5 {[%clk 0:00:03.5]} 49... Rg1+ {[%clk 0:00:02]} 50. Kf2
{[%clk 0:00:04.1]} 50... Qf1+ {[%clk 0:00:01.7]} 51. Ke3 {[%clk 0:00:04.6]} 1-0

[Event "Early-Titled-Tuesday-Blitz-March-19-2024"]
[Site "Chess.com"]
[Date "2024.03.19"]
[Round "8"]
[White "jraosam"]
[Black "Chessbard1972"]
[Result "0-1"]
[WhiteElo "2005"]
[BlackElo "2327"]
[TimeControl "180+1"]
[EndTime "9:30:06 PDT"]
[Termination "Chessbard1972 won by checkmate"]

1. d4 {[%clk 0:03:00.9]} 1... Nf6 {[%clk 0:02:58.1]} 2. c4 {[%clk 0:03:01.2]}
2... g6 {[%clk 0:02:57.4]} 3. Nc3 {[%clk 0:03:01.2]} 3... Bg7 {[%clk 0:02:58.3]}
4. e4 {[%clk 0:03:00.9]} 4... d6 {[%clk 0:02:59.2]} 5. Nf3 {[%clk 0:03:01.4]}
5... O-O {[%clk 0:03:00.1]} 6. Be2 {[%clk 0:03:01.5]} 6... Na6 {[%clk 0:03:01]}
7. O-O {[%clk 0:02:57.9]} 7... c5 {[%clk 0:03:01.4]} 8. h3 {[%clk 0:02:49.3]}
8... cxd4 {[%clk 0:02:59.3]} 9. Nxd4 {[%clk 0:02:48.8]} 9... Nc5 {[%clk
0:03:00.2]} 10. f3 {[%clk 0:02:46.7]} 10... Qb6 {[%clk 0:02:56.9]} 11. Be3
{[%clk 0:02:42]} 11... Qxb2 {[%clk 0:02:53.6]} 12. Ndb5 {[%clk 0:02:39.6]} 12...
a6 {[%clk 0:02:33.2]} 13. Rb1 {[%clk 0:02:36.9]} 13... Qxb1 {[%clk 0:02:30.1]}
14. Qxb1 {[%clk 0:02:30.5]} 14... axb5 {[%clk 0:02:30.2]} 15. Nxb5 {[%clk
0:02:29.5]} 15... Bd7 {[%clk 0:02:17.8]} 16. e5 {[%clk 0:02:26]} 16... Ne8
{[%clk 0:02:11.1]} 17. exd6 {[%clk 0:02:21.6]} 17... exd6 {[%clk 0:02:10.7]} 18.
Nxd6 {[%clk 0:02:18.2]} 18... Na4 {[%clk 0:02:01]} 19. Nxe8 {[%clk 0:02:16.3]}
19... Rfxe8 {[%clk 0:01:58.7]} 20. Qxb7 {[%clk 0:02:09.6]} 20... Bf5 {[%clk
0:01:46]} 21. Kf2 {[%clk 0:01:52.4]} 21... Nc3 {[%clk 0:01:36.8]} 22. a4 {[%clk
0:01:11.2]} 22... Nxe2 {[%clk 0:01:27.1]} 23. Kxe2 {[%clk 0:01:11]} 23... Bd4
{[%clk 0:01:26.4]} 24. Re1 {[%clk 0:00:59.7]} 24... Bxe3 {[%clk 0:01:19.1]} 25.
f4 {[%clk 0:00:58.6]} 25... Rad8 {[%clk 0:01:07.9]} 26. Kf3 {[%clk 0:00:23.5]}
26... Be4+ {[%clk 0:00:58]} 27. Qxe4 {[%clk 0:00:23.3]} 27... Rxe4 {[%clk
0:00:58]} 28. Kxe4 {[%clk 0:00:24.2]} 28... Bc5 {[%clk 0:00:51]} 29. Rc1 {[%clk
0:00:22.3]} 29... Kf8 {[%clk 0:00:42.1]} 30. f5 {[%clk 0:00:20.6]} 30... Ke7
{[%clk 0:00:41.7]} 31. fxg6 {[%clk 0:00:20.5]} 31... hxg6 {[%clk 0:00:41.1]} 32.
Rc3 {[%clk 0:00:18.5]} 32... Rd4+ {[%clk 0:00:39.2]} 33. Kf3 {[%clk 0:00:16.9]}
33... Rd2 {[%clk 0:00:35.8]} 34. Rb3 {[%clk 0:00:12.7]} 34... Rc2 {[%clk
0:00:29]} 35. Rb7+ {[%clk 0:00:11.8]} 35... Ke6 {[%clk 0:00:26.8]} 36. Ke4
{[%clk 0:00:03]} 36... Rxc4+ {[%clk 0:00:25.3]} 37. Kd3 {[%clk 0:00:03.7]} 37...
Rxa4 {[%clk 0:00:24.9]} 38. Rb5 {[%clk 0:00:04.2]} 38... Bd6 {[%clk 0:00:24.7]}
39. Rb2 {[%clk 0:00:03.7]} 39... f5 {[%clk 0:00:22.3]} 40. Re2+ {[%clk 0:00:04]}
40... Be5 {[%clk 0:00:21.4]} 41. Ke3 {[%clk 0:00:03.3]} 41... Ra3+ {[%clk
0:00:20.2]} 42. Kf2 {[%clk 0:00:03.9]} 42... Kf6 {[%clk 0:00:20.2]} 43. g4
{[%clk 0:00:03.6]} 43... Rxh3 {[%clk 0:00:18.3]} 44. gxf5 {[%clk 0:00:03.8]}
44... gxf5 {[%clk 0:00:18.3]} 45. Kg1 {[%clk 0:00:03.4]} 45... f4 {[%clk
0:00:17.8]} 46. Ra2 {[%clk 0:00:03.5]} 46... Kf5 {[%clk 0:00:17.8]} 47. Ra8
{[%clk 0:00:04.2]} 47... Ke4 {[%clk 0:00:17.4]} 48. Ra4+ {[%clk 0:00:03.7]}
48... Bd4+ {[%clk 0:00:17.7]} 49. Kg2 {[%clk 0:00:04.2]} 49... Rg3+ {[%clk
0:00:17.5]} 50. Kh2 {[%clk 0:00:04.7]} 50... Rc3 {[%clk 0:00:16.2]} 51. Ra2
{[%clk 0:00:04.3]} 51... Be3 {[%clk 0:00:13.8]} 52. Ra4+ {[%clk 0:00:03.2]}
52... Kf3 {[%clk 0:00:13.3]} 53. Kh3 {[%clk 0:00:02.3]} 53... Rc7 {[%clk
0:00:12.5]} 54. Ra2 {[%clk 0:00:02.7]} 54... Rh7# {[%clk 0:00:12.1]} 0-1

[Event "Early-Titled-Tuesday-Blitz-March-19-2024"]
[Site "Chess.com"]
[Date "2024.03.19"]
[Round "8"]
[White "Shahdad2007"]
[Black "kenta1234"]
[Result "1/2-1/2"]
[WhiteElo "2609"]
[BlackElo "2800"]
[TimeControl "180+1"]
[EndTime "9:30:07 PDT"]
[Termination "Game drawn - insufficient material"]

1. e4 {[%clk 0:03:00.9]} 1... e5 {[%clk 0:02:53.7]} 2. Nf3 {[%clk 0:03:01.1]}
2... Nc6 {[%clk 0:02:51.8]} 3. Bc4 {[%clk 0:03:01.5]} 3... Bc5 {[%clk
0:02:50.6]} 4. c3 {[%clk 0:03:01.6]} 4... Nf6 {[%clk 0:02:50.2]} 5. d4 {[%clk
0:03:02.2]} 5... exd4 {[%clk 0:02:50.6]} 6. e5 {[%clk 0:03:02.7]} 6... d5 {[%clk
0:02:48.1]} 7. Bb5 {[%clk 0:03:02.9]} 7... Ne4 {[%clk 0:02:48]} 8. cxd4 {[%clk
0:03:03.5]} 8... Bb4+ {[%clk 0:02:47.3]} 9. Bd2 {[%clk 0:03:03.5]} 9... Nxd2
{[%clk 0:02:42.2]} 10. Nbxd2 {[%clk 0:03:03.4]} 10... Bd7 {[%clk 0:02:35.3]} 11.
Bxc6 {[%clk 0:02:51.3]} 11... Bxc6 {[%clk 0:02:33.1]} 12. O-O {[%clk 0:02:51.2]}
12... O-O {[%clk 0:02:33.1]} 13. a3 {[%clk 0:02:51.2]} 13... Be7 {[%clk
0:02:32.3]} 14. Rc1 {[%clk 0:02:48.2]} 14... Bd7 {[%clk 0:02:31.6]} 15. Re1
{[%clk 0:02:43.1]} 15... Be6 {[%clk 0:02:31.8]} 16. Nf1 {[%clk 0:02:42.9]} 16...
b6 {[%clk 0:02:30.3]} 17. Ne3 {[%clk 0:02:41.2]} 17... c5 {[%clk 0:02:29.7]} 18.
dxc5 {[%clk 0:02:24.7]} 18... bxc5 {[%clk 0:02:29.2]} 19. Qd2 {[%clk 0:02:25.2]}
19... Rb8 {[%clk 0:02:22.8]} 20. Red1 {[%clk 0:02:13.6]} 20... d4 {[%clk
0:02:19.5]} 21. Nc4 {[%clk 0:02:13.4]} 21... Bd5 {[%clk 0:02:12.3]} 22. Qe2
{[%clk 0:02:05.9]} 22... Qd7 {[%clk 0:02:09.7]} 23. Nfd2 {[%clk 0:01:47.6]}
23... Qe6 {[%clk 0:01:59.9]} 24. f4 {[%clk 0:01:40.6]} 24... Qg6 {[%clk
0:01:57.2]} 25. Rf1 {[%clk 0:01:36.2]} 25... Qh6 {[%clk 0:01:33.6]} 26. Ne4
{[%clk 0:01:31.6]} 26... Qa6 {[%clk 0:01:17.3]} 27. Ned2 {[%clk 0:01:23]} 27...
f5 {[%clk 0:01:13.6]} 28. exf6 {[%clk 0:01:10.8]} 28... Bxf6 {[%clk 0:01:13.3]}
29. Qh5 {[%clk 0:01:11.4]} 29... Bf7 {[%clk 0:00:46.1]} 30. Qxc5 {[%clk
0:00:38.2]} 30... Rfc8 {[%clk 0:00:33.8]} 31. Qa5 {[%clk 0:00:30.3]} 31... Bxc4
{[%clk 0:00:18.9]} 32. Nxc4 {[%clk 0:00:29.6]} 32... Qxa5 {[%clk 0:00:19.2]} 33.
Nxa5 {[%clk 0:00:29.5]} 33... Rxc1 {[%clk 0:00:20.1]} 34. Rxc1 {[%clk
0:00:28.9]} 34... Rxb2 {[%clk 0:00:21]} 35. Nc4 {[%clk 0:00:28.1]} 35... Ra2
{[%clk 0:00:19.8]} 36. g4 {[%clk 0:00:20.5]} 36... h6 {[%clk 0:00:19.5]} 37. f5
{[%clk 0:00:19]} 37... Kf7 {[%clk 0:00:19.5]} 38. Nd6+ {[%clk 0:00:18.5]} 38...
Ke7 {[%clk 0:00:18.8]} 39. Ne4 {[%clk 0:00:18]} 39... Be5 {[%clk 0:00:18.6]} 40.
h4 {[%clk 0:00:12.5]} 40... Bf4 {[%clk 0:00:17.4]} 41. Rd1 {[%clk 0:00:12.7]}
41... Be3+ {[%clk 0:00:17.2]} 42. Kf1 {[%clk 0:00:12.7]} 42... Rxa3 {[%clk
0:00:15.8]} 43. g5 {[%clk 0:00:13]} 43... hxg5 {[%clk 0:00:16]} 44. hxg5 {[%clk
0:00:13.9]} 44... Ra5 {[%clk 0:00:15.8]} 45. f6+ {[%clk 0:00:13.6]} 45... gxf6
{[%clk 0:00:16.7]} 46. gxf6+ {[%clk 0:00:14]} 46... Kf7 {[%clk 0:00:17.2]} 47.
Ke2 {[%clk 0:00:14.5]} 47... Ra2+ {[%clk 0:00:15.5]} 48. Kd3 {[%clk 0:00:14.5]}
48... Ra3+ {[%clk 0:00:14.3]} 49. Kc4 {[%clk 0:00:14.7]} 49... Ra4+ {[%clk
0:00:14.3]} 50. Kd5 {[%clk 0:00:14]} 50... Ra5+ {[%clk 0:00:14.4]} 51. Kc4
{[%clk 0:00:13.9]} 51... Re5 {[%clk 0:00:13.8]} 52. Kd3 {[%clk 0:00:13.6]} 52...
a5 {[%clk 0:00:12.5]} 53. Rb1 {[%clk 0:00:12]} 53... Rxe4 {[%clk 0:00:07]} 54.
Kxe4 {[%clk 0:00:10.5]} 54... Kxf6 {[%clk 0:00:07.9]} 55. Ra1 {[%clk 0:00:10.7]}
55... Bd2 {[%clk 0:00:07.7]} 56. Kxd4 {[%clk 0:00:10.7]} 56... Bb4 {[%clk
0:00:08.1]} 57. Kc4 {[%clk 0:00:11]} 57... Ke6 {[%clk 0:00:08.2]} 58. Rd1 {[%clk
0:00:09]} 58... Ke5 {[%clk 0:00:08.4]} 59. Kb3 {[%clk 0:00:07.9]} 59... Ke4
{[%clk 0:00:08.7]} 60. Ka4 {[%clk 0:00:07.8]} 60... Ke3 {[%clk 0:00:09]} 61. Rb1
{[%clk 0:00:08.4]} 61... Ke2 {[%clk 0:00:09]} 62. Rxb4 {[%clk 0:00:09]} 62...
axb4 {[%clk 0:00:09.6]} 63. Kxb4 {[%clk 0:00:09.9]} 1/2-1/2